Cogmind - Beta 16 @@@ ROGUE MODE // 2026.01.12 @ 20:24:46 Player: C4PT41N Result: Destroyed by HL-OF4(R) with Subdweller Beam Cannon Performance ------------- Evolutions (0) 0 Regions Visited (2) 400 Robots Destroyed (36) 180 Value Destroyed (914) 914 Prototype IDs (0) 0 Alien Tech Used (0) 0 Bonus (0) 0 TOTAL SCORE: 1494 Bonus ------- None Cogmind --------- Core Integrity 0/250 Matter 223/300 Energy 200/200 System Corruption 0% Temperature Cool (9) Movement Rolling (110) Location -10/Subcaves Parts ------- > --- POWER (1) -------- Subdweller Power Source > --- PROPULSION (2) --- Subdweller Monowheel > --- UTILITY (2) ------ (None) > --- WEAPON (2) ------- Subdweller Machine Gun Battle Cannon > --- INVENTORY (5) ---- Ion Engine Wheel Compact Wheel Light Armor Plating Beam Cannon Peak State ------------ > --- POWER ------------ Subdweller Power Source > --- PROPULSION ------- Light Treads Light Treads > --- UTILITY ---------- Scrap Shield > --- WEAPON ----------- Subdweller Machine Gun Battle Cannon > --- INVENTORY -------- Ion Engine Wheel Compact Wheel Light Armor Plating Beam Cannon [Rating: 12] Favorites ----------- Power Ion Engine Engine Ion Engine Power Core Light Nuclear Core Propulsion Light Treads Treads Light Treads Wheel Subdweller Monowheel Utility Sensor Array Device Sensor Array Processor Signal Interpreter Protection Scrap Shield Weapon Beam Cannon Energy Gun Medium Laser Energy Cannon Beam Cannon Ballistic Gun Subdweller Machine Gun Ballistic Cannon Battle Cannon Build | -11 -10 -10 ------- Run | Yrd Mat Sub Slots Evolved . | . . . Power . | . . . Propulsion . | . . . Utility . | . . . Weapon . | . . . Parts Attached 33 | 7 18 8 Power 10 | 2 5 3 Engine 8 | 2 3 3 Core 2 | . 2 . Reactor . | . . . Propulsion 8 | 2 5 1 Treads 7 | 2 5 . Leg . | . . . Wheel 1 | . . 1 Hover . | . . . Flight . | . . . Utility 6 | 1 4 1 Device 4 | 1 3 . Storage . | . . . Processor 1 | . 1 . Hackware . | . . . Protection 1 | . . 1 Artifact . | . . . Weapon 9 | 2 4 3 Energy Gun 3 | 2 1 . Energy Cannon 3 | . 3 . Ballistic Gun 2 | . . 2 Ballistic Cannon 1 | . . 1 Launcher . | . . . Special Weapon . | . . . Impact Weapon . | . . . Slashing Weapon . | . . . Piercing Weapon . | . . . Special Melee Weapon . | . . . Unidentified Prototypes . | . . . Parts Lost 2 | . . 2 Power 1 | . . 1 Propulsion . | . . . Utility 1 | . . 1 Weapon . | . . . Highest Loss Streak 1 | . . 1 To Critical Strikes . | . . . Average Backups 4 | 1 4 5 Power 1 | . 1 1 Propulsion 1 | 1 2 2 Utility . | . . 1 Weapon . | . . 1 Tool/Special . | . . . Unused Backups 3 | . . 3 Power . | . . . Propulsion 2 | . . 2 Utility 1 | . . 1 Weapon . | . . . Tool/Special . | . . . Average Slot Usage (%) 93 | . 99 89 Engine 8 | . 6 10 Core 2 | . 7 . Treads 26 | . 28 25 Device 12 | . 17 8 Processor 9 | . 9 8 Protection 2 | . . 5 Energy Gun 2 | . 6 . Energy Cannon 11 | . 20 4 Ballistic Gun 11 | . . 20 Ballistic Cannon 1 | . . 3 Peak Build Rating 12 | 6 9 12 Average Rating 9 | 4 7 10 On Entrance 4 | . 6 7 Avg Prop Armor Cover (%) . | . . . Naked Turns . | . . . Heaviest Build 30 | 10 13 30 Greatest Support 40 | 40 40 40 Greatest Overweight (x) 9 | . . 9 Average Overweight (x) . | . . . Largest Inventory Capacity 5 | 5 5 5 Average Capacity 5 | 5 5 5 Most Carried 5 | 3 5 5 Average Carried 4 | 2 4 5 Final Capacity 5 | 5 5 5 Final Carried 5 | 3 5 5 Class Distribution -------------------- 94% | Mutant 5% | Subdweller-Mutant Dominant Class ---------------- Mutant | -10/Materials Mutant | -10/Subcaves Resources | -11 -10 -10 ----------- Run | Yrd Mat Sub Matter Collected 1023 | 249 268 506 Remotely . | . . . Salvage Created 1189 | 85 801 303 Parts 69 | 7 42 20 Haulers Intercepted 2 | . 2 . Recyclers Shooed . | . . . Parts Field Recycled . | . . . Retrieved Matter . | . . . Parts Self-Destructed 16 | . . 16 Prevented . | . . . Parts Restored . | . . . Kills | -11 -10 -10 ------- Run | Yrd Mat Sub Combat Hostiles Destroyed 25 | . 14 11 Guns 8 | . 2 6 Cannons 17 | . 12 5 Classes Destroyed 8 | 2 4 2 Worker 4 | . 4 . Tunneler 1 | 1 . . Hauler 2 | . 2 . Recycler 1 | 1 . . Watcher 3 | . 3 . Swarmer 4 | . . 4 Grunt 14 | . 14 . Subdweller 7 | . . 7 Best Kill Streak 5 | 1 5 3 Combat Bots Only 3 | . 2 3 Max Kills in Single Turn 2 | 1 2 1 Gunslinging . | . . . Exploded . | . . . Melee . | . . . Uniques/NPCs Destroyed . | . . . Combat | -11 -10 -10 -------- Run | Yrd Mat Sub Hostile Shots Fired 130 | . 51 79 Missed 38 | . 12 26 Hits 92 | . 39 53 Projectile 92 | . 39 53 Damage Taken 1523 | . 502 1021 Core 265 | . 99 166 Absorbed by Shields . | . . . Regen/Repaired (Parts) 72 | . 72 . Core Remaining (%) 100 | 100 . . Volleys Fired 155 | 7 52 96 Largest 2 | 2 2 2 Hottest 120 | 100 120 120 Shots Fired 300 | 8 100 192 Gun 173 | 8 26 139 Cannon 127 | . 74 53 Launcher . | . . . Special . | . . . Kinetic 158 | . . 158 Thermal 142 | 8 100 34 Explosive . | . . . Electromagnetic . | . . . Robot Hit Streak 16 | 3 6 16 Robot Miss Streak 6 | 1 6 4 Penetration Max . | . . . Secondary Targets 1 | . . 1 Max Gunslinging Chain 1 | . . 1 Shots Hit Robots 125 | 5 50 70 Core Hits 52 | 3 30 19 Critical Kills . | . . . Critical Parts Destroyed . | . . . Critical Strikes 1 | . 1 . Burn 1 | . 1 . Melee Attacks . | . . . Impact . | . . . Slashing . | . . . Piercing . | . . . Sneak Attacks . | . . . Combat Hostiles . | . . . Follow-up Attacks . | . . . Damage Inflicted 2249 | 63 891 1295 Guns 889 | 63 190 636 Cannons 1340 | . 681 659 Explosions . | . . . Melee . | . . . Ramming 20 | . 20 . Kinetic 926 | . . 926 Thermal 1303 | 63 871 369 Explosive . | . . . Electromagnetic . | . . . Impact . | . . . Slashing . | . . . Piercing . | . . . Highest Corruption . | . . . Average Corruption . | . . . Corruption Purged . | . . . Corruption Blocked . | . . . Overload Shots . | . . . Overflow Damage . | . . . Projectiles . | . . . Explosions . | . . . Melee . | . . . Knockbacks 3 | . . 3 Impact . | . . . Kinetic 3 | . . 3 Secondary . | . . . Self-Inflicted Damage . | . . . Shots . | . . . Rammed 4 | . 4 . Targets Rammed 4 | . 4 . Kicked . | . . . Crushed . | . . . Highest Temperature 461 | 60 461 . Average Temperature 134 | 28 141 . Received Heat Transfer 456 | . 261 195 Effects 6 | . 6 . Shutdowns 2 | . 2 . Interference 1 | . 1 . Matter Decay 1 | . 1 . Damage (minor) 2 | . 2 . Siege Activations . | . . . Martial Activations . | . . . Shielding Activations . | . . . Robots Disrupted . | . . . Combat Hostiles . | . . . Robots Corrupted . | . . . Combat Hostiles . | . . . Parts Fried . | . . . Impact Corruptions . | . . . Robots Melted . | . . . Combat Hostiles . | . . . Parts Melted 6 | . 5 1 Heat Transferred 3034 | 185 2072 777 Parts Sabotaged . | . . . Parts Stolen . | . . . Parts Stripped . | . . . Power Chain Reactions . | . . . Alert | -11 -10 -10 ------- Run | Yrd Mat Sub Maximum Alert Level . | . . . Low Security (%) 100 | 100 100 . Level 1 . | . . . Level 2 . | . . . Level 3 . | . . . Level 4 . | . . . Level 5 . | . . . High Security . | . . . Max Security . | . . . Peak Influence 122 | 5 122 . Initial . | . . . Average 40 | 1 42 . Influence Increases 541 | 10 441 90 Destroy 0b10 Robot/C 360 | . 280 80 Destroy 0b10 Robot/NC 55 | 10 45 . Destroy Leader 80 | . 70 10 Successful Hack 15 | . 15 . Disable Machine 15 | . 15 . Destroy Structure 1 | . 1 . Lose Combat Pursuer 15 | . 15 . Influence Decreases 541 | 10 429 102 Entered New Map 7 | . . 7 Time Decay 534 | 10 429 95 Squads Dispatched 4 | . 4 . Investigation 3 | . 3 . Extermination . | . . . Reinforcement 1 | . 1 . Assault . | . . . Garrison . | . . . Intercept . | . . . Searches Triggered . | . . . Construction Impeded . | . . . Haulers Reinforced . | . . . Active Scanning Responses . | . . . Cargo Convoy Interrupts . | . . . Stealth | -11 -10 -10 --------- Run | Yrd Mat Sub Distress Signals . | . . . Communications Jammed . | . . . Distress Signals . | . . . Times Spotted 35 | . 20 15 Peak Tracking Total 4 | . 4 3 Tactical Retreats 1 | . 1 . Traps | -11 -10 -10 ------- Run | Yrd Mat Sub Traps Triggered 3 | . 2 1 Indirectly . | . . . Trap Hack Attempts . | . . . Triggered . | . . . Disarmed . | . . . Reprogrammed . | . . . Reused . | . . . Traps Extracted . | . . . Installed . | . . . Triggered . | . . . Machines | -11 -10 -10 ---------- Run | Yrd Mat Sub Machines Disabled 1 | . 1 . Max in Single Turn 1 | . 1 . Machines Repaired . | . . . Machines Dismantled . | . . . Machines Sabotaged . | . . . Overloaded Fab Kills . | . . . Hacking | -11 -10 -10 --------- Run | Yrd Mat Sub Machines Accessed 5 | . 5 . Terminals 4 | . 4 . Fabricators . | . . . Repair Stations 1 | . 1 . Recycling Units . | . . . Scanalyzers . | . . . Garrison Access . | . . . Total Hacks 15 | . 15 . Successful 7 | . 7 . Failed 8 | . 8 . Catastrophic . | . . . Database Lockouts . | . . . Manual 1 | . 1 . Terminals 10 | . 10 . Fabricators . | . . . Repair Stations 5 | . 5 . Recycling Units . | . . . Scanalyzers . | . . . Garrison Access . | . . . Terminal Hacks 4 | . 4 . Zone Layout 4 | . 4 . Fabricator Hacks . | . . . Repair Station Hacks 3 | . 3 . Scan Component 2 | . 2 . Repair 1 | . 1 . Recycling Unit Hacks . | . . . Scanalyzer . | . . . Garrison Access Hacks . | . . . Unauthorized Hacks . | . . . Terminals . | . . . Fabricators . | . . . Repair Stations . | . . . Recycling Units . | . . . Scanalyzers . | . . . Garrison Access . | . . . Data Cores Recovered . | . . . Used . | . . . Hacking Detections 2 | . 2 . Full Trace Events 2 | . 2 . Feedback Events . | . . . Feedback Blocked . | . . . Robot Schematics Acquired . | . . . Robots Built . | . . . Authchips . | . . . Time . | . . . Total Robot Build Rating . | . . . Part Schematics Acquired . | . . . Parts Built . | . . . Authchips . | . . . Time . | . . . Total Part Build Rating . | . . . Part Studies Acquired . | . . . Parts Repaired 1 | . 1 . Time 36 | . 36 . Parts Recycled . | . . . Recycled Matter . | . . . Retrieved Matter . | . . . Retrieved Components . | . . . Parts Scanalyzed . | . . . Part Schematics Acquired . | . . . Parts Damaged . | . . . Bothacking | -11 -10 -10 ------------ Run | Yrd Mat Sub Used RIF Installer . | . . . Robots Hacked . | . . . Non-combat . | . . . Combat . | . . . Robot Hacks Applied . | . . . Relay Couplers Released . | . . . Fabnet Peak Effective % . | . . . Robots Rewired . | . . . Allies Hacked . | . . . Hacks Repelled . | . . . Allies | -11 -10 -10 -------- Run | Yrd Mat Sub Total Allies . | . . . Largest Group . | . . . Highest-Rated Group . | . . . Highest-Rated Ally . | . . . Total Orders . | . . . Ally Attacks . | . . . Total Damage . | . . . Kills . | . . . Allies Corrupted . | . . . Allies Melted . | . . . Intel | -11 -10 -10 ------- Run | Yrd Mat Sub Active Infowar (turns) 3197 | 24 1660 1513 Sensors 2731 | . 1218 1513 Structural 293 | . 293 . Seismic 461 | 24 437 . Robot Analysis Total . | . . . Derelict Logs Recovered . | . . . Drone Launches . | . . . Drone Recoveries . | . . . Exploration | -11 -10 -10 ------------- Run | Yrd Mat Sub Turns Passed 4169 | 114 1660 2395 Spaces Moved 1943 | 57 893 993 Core 6 | 3 . 3 Treads 1825 | 54 893 878 Legs . | . . . Wheels 112 | . . 112 Hover . | . . . Flight . | . . . Fastest Speed 50 | 50 160 120 Average Speed 158 | 154 160 156 Slowest Speed 500 | 160 160 500 Overloaded Moves . | . . . Propulsion Burnouts . | . . . Robots Hopped . | . . . Potential Cave-ins . | . . . Cave-ins Triggered . | . . . Exploration Rate (%) 43 | 5 94 32 Regions Visited 2 Branch Regions 1 Pre-discovered Areas . | . . . Known Exits Taken 1 | . 1 . Unknown Exits Taken 1 | 1 . . Scrap Searched 4 | . . 4 Spaces Dug . | . . . Terrain Destroyed . | . . . Melee . | . . . Projectile . | . . . AOE . | . . . Terrain Rammed . | . . . Walls Destroyed . | . . . Machines Disabled . | . . . Actions | -11 -10 -10 --------- Run | Yrd Mat Sub Total 2740 | 72 1022 1646 Wait 563 | . 34 529 Move 1941 | 56 892 993 Hop . | . . . Pick Up 3 | 2 1 . Fast Attach 24 | 6 10 8 Attach . | . . . Detach 3 | . 2 1 Swap 15 | 1 12 2 Drop 25 | . 15 10 Fire 155 | 7 52 96 Melee . | . . . Ram . | . . . Kick . | . . . Crush 4 | . 4 . Escape Stasis . | . . . Rewire . | . . . Trap . | . . . Miscellaneous 7 | . . 7 Route ------- -11/Scrapyard -10/Materials (discovered 5 exits: *Mat x3 / [*Min] / *Sub) -10/Subcaves (discovered 1 exit: *Mat) History --------- Turn | Location | Event 31 | -11/Scrapyard | Discovered new exit (range 16) 115 | -11/Scrapyard | Entered Materials 337 | -10/Materials | Build established: Mutant 376 | -10/Materials | Discovered new exit (range 14) 571 | -10/Materials | Discovered new exit (range 18) 651 | -10/Materials | Identified exit to Materials 1039 | -10/Materials | Discovered exit to Materials (range 10) 1182 | -10/Materials | Repaired Broken Beam Cannon 1228 | -10/Materials | Discovered new exit (range 10) 1240 | -10/Materials | Identified exit to Subcaves 1431 | -10/Materials | Discovered exit to Materials (range 10) 1775 | -10/Materials | Entered Subcaves 1776 | -10/Subcaves | Approached by a straggling Scientist 1781 | -10/Subcaves | Core integrity fell below 50% 1884 | -10/Subcaves | Discovered new exit (range 10) 2908 | -10/Subcaves | Identified exit to Materials 2979 | -10/Subcaves | A swath of the cavern ceiling suddenly collapsed 3938 | -10/Subcaves | Core integrity fell below 20% 4170 | -10/Subcaves | Destroyed by HL-OF4(R) with Subdweller Beam Cannon Last Messages --------------- Shield (+49). 03977_ Scrap Shield Fragment affixed to Scrap Shield (+45). 03986_ Acquired 3 matter. 03987_ Dropped Lgt. Treads. 03992_ Subatomizers dissect the Sub. Monowheel. 03993_ Acquired 3 matter. 04003_ Acquired Sub. Monowheel. 04007_ Subatomizers dissect the Disposable Heat Sink. 04007_ Acquired 50 matter. 04012_ Acquired 5 matter. 04014_ Acquired 7 matter. 04023_ Scrap Shield Fragment affixed to Scrap Shield (+14). 04038_ Acquired 15 matter. 04047_ Acquired 5 matter. 04135_ HL-OF4(R) knocked back. 04160_ Scrap Shield destroyed. 04161_ HL-OF4(R) knocked back. Map ----- +----------------------------------------------------+ | #?????????????????????????????????? | | ####???????????????????????????????? | | # #???????????????????????????????? | | #???????????????????????????????? | | ## #??#####????????????????????????? | | ### ## ### #????????????????????????? | | #?# #??# ####????????????????????????? | | ## ##?# ##??## ##?????????????????????????? | | ## ##??# #????# #?????????????????????????? | | ## ##???# #???## #?????????????????????????? | | ####???## ##??# #######????????????????????? | | #????## #### #?# #????????????????????? | | #??### ## ### ##???????????????????? | | ###?## ### # #????##?????????????? | | #?## #?# ## ##?## #?????????????? | | ##?# #?# #" ### #?????????????? | | ##?#### ##?## " R #?????????????? | | #????### ##???# # R #?????????????? | | ###????## ###?## ## <<< ##?????????????? | | ######## ### ### R #??????????????? | | ## ##" ## ## ##??????????????? | | #### ## % #???????????????? | | #?#" # # #???????????????? | | # ####?## ####;# # ##??????????????? | | # #?????## ]*### ## #??????????????? | | # ##### ### = ## @ #### #?????????????? | | ###???? ### = ## ##???# #?????????????? | | ??????? ## ## #?????##?????????????? | | ??????? ## # %##??????#?????????????? | | ????? ## # % #?????????????? | | ????## ### %R #?????????????? | | ?????# ## #?##### #?????????????? | | ????# #?## ??????# ## #????????????? | | ????# ??#??## ??????# ##?? #????????????? | | ????#???????# ??????# #????? #????????????? | | ????????????# ??????## ##???????????????????? | | ????????????## ???????######????????????????????? | | ?????????????# ??????????????????????????????????? | | ?????????????##??????????????????????????????????? | | ?????????????????????????????????????????????????? | | ?????????????????????????????????????????????????? | | ?????????????????????????????????????????????????? | | ?????????????????????????????????????????????????? | | ?????????????????????????????????????????????????? | | ?????????????????????????????????????????????????? | | ?????????????????????????????????????????????????? | | ?????????????????????????????????????????????????? | | ?????????????????????????????????????????????????? | | ?????????????????????????????????????????????????? | | ?????????????????????????????????????????????????? | +----------------------------------------------------+ Best States ------------- Heat Dissipation 25 Energy Generation 15 Energy Capacity 250 Matter Stores 300 Matter Capacity 300 Sight Range 16 Robot Scan Range 14 Terrain Scan Density 10 Armor Coverage 800 Evasion (%) 40 Recoil Reduction 2 Item Schematics ----------------- None Robot Schematics ------------------ None Fabricated ------------ Nothing Repaired ---------- Beam Cannon | 28% | -10/Materials | Broken Studied --------- None Alien Tech Used ----------------- None Achievements -------------- None Challenges ------------ None Game ------ Seed WaveMetamassFlightbrick Manual? 0 Play Time 00:23:15 Cumulative 21.8 hours Start 2026.01.12 @ 20:03:32 End 2026.01.12 @ 20:24:46 Sessions 1 Manual Loads 0 Difficulty Rogue Special Mode None Game No. 26 Rogue 26 Adventurer 0 Explorer 0 Win Type - Total 0 Types 0/0/0/0/0/0/0/0/0/0 Lore% 19 Gallery% 17 Achievement% 19 Wizard Run 0 Options --------- Layout 1 ASCII 0 Keyboard 0 Movement Arrows Keybinds 0 Fullscreen 2 Font 24/Crisp Map View 50x35 Zoom Use 0% Tactical HUD 1 Map Filters NONE Filters NONE Steam 1 RUN: fc79efa0-f7e5-4f2b-a7d8-13840dc490c5